bitfinex/quotes_SOLUSD_20251218
["timestamp","ask_amount","ask_price","bid_price","bid_amount"]
[1766079134121,11.86798245,121.88,121.83,11.86798245]
[1766079134619,12.17798245,121.89,121.83,11.86798245]
[1766079134992,10.43767296,121.9,121.83,0.69]
[1766079135197,10.43767296,121.9,121.85,11.86798245]
[1766079135198,22.30565541,121.9,121.85,11.86798245]
[1766079135393,0.31,121.92,121.85,11.86798245]
[1766079135622,11.86798245,121.91,121.85,11.86798245]
[1766079135821,10.74767296,121.92,121.87,11.86798245]
[1766079135822,0.31,121.92,121.87,11.86798245]
[1766079136012,0.31,121.95,121.89,11.86798245]
[1766079136328,11.86798245,121.95,121.9,11.86798245]
[1766079136547,0.31,121.97,121.91,11.86798245]
[1766079136548,11.86798245,121.96,121.91,11.86798245]
[1766079136699,10.43767296,121.95,121.91,11.86798245]
[1766079137024,11.86798245,122.0,121.94,11.86798245]
[1766079137244,11.86798245,121.99,121.94,11.86798245]
[1766079137518,11.86798245,121.99,121.93,11.86798245]
[1766079137718,11.86798245,121.99,121.92,0.69]
[1766079137926,10.43767296,121.99,121.91,0.69]
[1766079138226,0.31,122.05,121.94,0.69]
[1766079138471,11.86798245,122.01,121.96,11.86798245]
[1766079138652,11.86798245,122.0,121.95,11.86798245]
[1766079138961,8.80994492,122.05,121.98,11.86798245]
[1766079138962,11.86798245,122.03,121.98,11.86798245]
[1766079139280,28.67207339,122.07,122.0,12.55798245]
[1766079139281,0.05,122.07,122.0,12.55798245]
[1766079139434,11.86798245,122.06,122.0,0.69]
[1766079139638,10.43767296,122.06,121.99,12.55798245]
[1766079139840,11.86798245,122.05,121.99,12.55798245]
[1766079140236,11.86798245,122.05,122.0,11.86798245]
[1766079140441,10.43767296,121.99,121.91,0.69]
[1766079140765,10.43767296,121.99,121.85,41.27191496]
[1766079140766,11.86798245,121.97,121.92,12.55798245]
[1766079141138,11.86798245,121.96,121.9,12.55798245]
[1766079141440,11.86798245,121.97,121.92,12.55798245]
[1766079142071,22.30565541,121.98,121.93,11.86798245]
[1766079142273,22.30565541,121.98,121.92,0.69]
[1766079142274,11.86798245,121.97,121.87,8.80994492]
[1766079142473,8.80994492,122.02,121.93,11.86798245]
[1766079142474,11.86798245,121.99,121.93,11.86798245]
[1766079142777,10.43767296,121.99,121.94,12.55798245]
[1766079142967,10.43767296,121.99,121.95,11.86798245]
[1766079143165,11.86798245,122.01,121.96,11.86798245]
[1766079143350,8.19491354,122.03,121.97,12.55798245]
[1766079143351,10.43767296,122.0,121.97,12.55798245]
[1766079143557,20.67792737,122.04,121.98,11.86798245]
[1766079143761,10.43767296,122.01,121.98,11.86798245]
[1766079143961,10.43767296,122.01,121.97,0.69]
[1766079143962,4.24464608,122.07,121.97,0.69]
[1766079144173,11.86798245,122.07,122.01,11.86798245]
[1766079144480,8.19087328,122.09,122.02,11.86798245]
[1766079144652,8.19087328,122.09,121.96,37.50766568]
[1766079144653,20.05885573,122.09,122.03,11.86798245]
[1766079144851,11.86798245,122.12,122.06,11.86798245]
[1766079145183,11.86798245,122.12,122.06,12.55798245]
[1766079145360,11.86798245,122.11,122.06,12.55798245]
[1766079145682,11.86798245,122.07,122.02,0.69]
[1766079145889,11.86798245,122.07,122.02,12.55798245]
[1766079146278,11.86798245,122.06,122.01,20.76798245]
[1766079146600,11.86798245,122.05,122.0,0.69]
[1766079146892,11.86798245,122.04,122.0,0.69]
[1766079147263,22.30565541,122.05,122.0,0.69]
[1766079147458,10.43767296,122.05,122.0,12.55798245]
[1766079147857,22.30565541,122.05,122.0,12.55798245]
[1766079148186,10.43767296,122.05,122.0,12.55798245]
[1766079148354,22.30565541,122.05,122.0,12.55798245]
[1766079148558,22.30565541,122.05,122.0,0.69]
[1766079148871,11.86798245,122.03,121.96,0.69]
[1766079149188,10.43767296,122.02,121.97,11.86798245]
[1766079149362,10.43767296,122.02,121.98,0.69]
[1766079149560,10.43767296,122.04,121.95,8.9]
[1766079149761,10.43767296,122.04,122.0,12.55798245]
[1766079149961,17.00213493,122.07,121.95,8.9]
[1766079149962,11.86798245,122.07,122.02,11.86798245]
[1766079150192,8.19148879,122.08,122.01,12.55798245]
[1766079150193,11.86798245,122.06,122.01,12.55798245]
[1766079150381,22.30565541,122.06,122.01,12.55798245]
[1766079150580,10.43767296,122.06,121.96,8.80994492]
[1766079150797,10.43767296,122.06,121.97,12.55798245]
[1766079150798,11.86798245,122.02,121.97,12.55798245]
[1766079150998,10.43767296,122.03,121.99,0.69]
[1766079151194,10.43767296,122.03,122.0,11.86798245]
[1766079151396,10.43767296,122.05,122.0,12.55798245]
[1766079151689,10.43767296,122.05,122.01,11.86798245]
[1766079151891,10.43767296,122.05,122.0,11.86798245]
[1766079152065,0.99999999,122.11,122.04,12.55798245]
[1766079152066,11.86798245,122.1,122.04,12.55798245]
[1766079152261,8.18937487,122.11,122.05,11.86798245]
[1766079152262,11.86798245,122.11,122.05,11.86798245]
[1766079152462,11.86798245,122.12,122.06,11.86798245]
[1766079152678,11.86798245,122.13,122.08,0.69]
[1766079153193,11.86798245,122.16,122.11,12.55798245]
[1766079153395,11.86798245,122.16,122.11,0.69]
[1766079153706,8.80994492,122.18,122.06,12.55798245]
[1766079153990,11.86798245,122.13,122.07,12.55798245]
[1766079154166,10.43767296,122.15,122.09,11.86798245]
[1766079154366,22.30565541,122.15,122.09,12.55798245]
[1766079154608,8.9,122.18,122.11,12.55798245]
[1766079154895,10.43767296,122.16,122.11,12.55798245]
[1766079155095,22.30565541,122.16,122.11,12.55798245]
[1766079155299,9.1,122.2,122.12,11.86798245]
[1766079155499,9.1,122.2,122.05,0.69]
[1766079155500,11.86798245,122.17,122.05,0.69]
[1766079155716,9.1,122.2,122.14,11.86798245]
[1766079155998,11.86798245,122.18,122.12,12.55798245]
[1766079156372,17.28355079,122.2,122.12,0.69]
[1766079156373,22.30565541,122.17,122.12,0.69]
[1766079156763,11.86798245,122.13,122.06,0.69]
[1766079156968,10.43767296,122.14,122.1,11.86798245]
[1766079157186,10.43767296,122.17,122.11,12.55798245]
[1766079157187,22.30565541,122.17,122.11,12.55798245]
[1766079157396,22.30565541,122.17,122.12,11.86798245]
[1766079157596,22.30565541,122.17,122.12,0.69]
[1766079157799,18.6231605,122.17,122.1,11.86798245]
[1766079158104,10.43767296,122.13,122.06,0.69]
[1766079158313,10.43767296,122.13,122.07,0.69]
[1766079158603,10.43767296,122.13,122.1,0.69]
[1766079158790,10.43767296,122.13,122.08,11.86798245]
[1766079158977,10.43767296,122.13,122.1,0.69]
[1766079159392,10.43767296,122.13,122.1,12.55798245]
[1766079159597,10.43767296,122.14,122.12,0.69]
[1766079160601,10.43767296,122.14,122.09,12.55798245]
[1766079160602,11.86798245,122.14,122.09,12.55798245]
[1766079160983,10.43767296,122.17,122.1,0.69]
[1766079161400,11.86798245,122.14,122.1,0.69]
[1766079161879,8.18598559,122.16,122.06,11.86798245]
[1766079161880,11.86798245,122.12,122.06,11.86798245]
[1766079162084,22.30565541,122.13,122.08,11.86798245]
[1766079162288,10.43767296,122.13,122.04,19.24761788]
[1766079162480,10.43767296,122.14,122.09,12.54798245]
[1766079162882,10.43767296,122.14,122.1,11.86798245]
[1766079163127,8.18493275,122.18,122.13,0.68]
[1766079163128,11.86798245,122.18,122.13,0.68]
[1766079163406,0.2,122.2,122.13,0.68]
[1766079163407,10.43767296,122.17,122.13,0.68]
[1766079163618,22.25740257,122.17,122.13,0.68]
[1766079163785,11.81972961,122.17,122.13,0.68]
[1766079164190,8.18467245,122.18,122.13,0.68]
[1766079164191,10.43767296,122.18,122.13,0.68]
[1766079164608,22.25740257,122.18,122.13,0.68]
[1766079164808,22.25740257,122.18,122.14,0.68]
[1766079165119,12.01972961,122.2,122.15,0.68]
[1766079165423,0.2,122.2,122.15,0.68]
[1766079165723,11.81972961,122.19,122.15,0.68]
[1766079166087,0.2,122.2,122.15,0.68]
[1766079166311,0.2,122.2,122.17,0.68]
[1766079166486,0.2,122.2,122.17,12.49972961]
[1766079167185,0.2,122.2,122.18,0.68]
[1766079167388,0.2,122.2,122.16,11.81972961]
[1766079167585,0.2,122.2,122.15,11.81972961]
[1766079167827,0.2,122.2,122.15,0.68]
[1766079168120,0.2,122.2,122.15,12.49972961]
[1766079168364,11.81972961,122.18,122.13,12.49972961]
[1766079168539,18.82115993,122.2,122.1,20.01767296]
[1766079168540,27.63110485,122.2,122.1,20.01767296]
[1766079168682,18.82115993,122.2,122.13,11.81972961]
[1766079168885,18.82115993,122.2,122.13,12.49972961]
[1766079168886,11.81972961,122.18,122.13,12.49972961]
[1766079169101,11.81972961,122.19,122.13,12.49972961]
[1766079169316,11.81972961,122.18,122.13,12.49972961]
[1766079169512,11.81972961,122.17,122.13,0.68]
[1766079169714,11.81972961,122.17,122.11,11.81972961]
[1766079169916,11.81972961,122.17,122.12,0.68]
[1766079170709,22.25740257,122.17,122.12,12.49972961]
[1766079170909,10.43767296,122.17,122.12,0.68]
[1766079171112,11.81972961,122.16,122.12,0.68]
[1766079171314,11.81972961,122.15,122.1,12.49972961]
[1766079171694,18.62331923,122.17,122.1,12.49972961]
[1766079171905,11.81972961,122.15,122.1,12.49972961]
[1766079172138,10.43767296,122.16,122.1,12.49972961]
[1766079172318,11.81972961,122.17,122.12,0.68]
[1766079172523,10.43767296,122.17,122.13,0.68]
[1766079173117,10.43767296,122.17,122.13,12.49972961]
[1766079173308,10.43767296,122.18,122.14,12.49972961]
[1766079173510,0.2,122.2,122.17,0.68]
[1766079173823,0.2,122.2,122.18,12.49972961]
[1766079174227,0.2,122.2,122.14,20.46736322]
[1766079174228,8.22872811,122.27,122.2,0.68]
[1766079174405,0.05,122.27,122.21,0.68]
[1766079174610,11.81972961,122.27,122.21,0.68]
[1766079174813,11.81972961,122.24,122.17,0.68]
[1766079175036,11.81972961,122.24,122.18,0.68]
[1766079175334,11.81972961,122.23,122.18,0.68]
[1766079175539,11.81972961,122.22,122.16,12.49972961]
[1766079175865,11.81972961,122.21,122.16,0.68]
[1766079176039,11.81972961,122.18,122.13,11.81972961]
[1766079176228,11.81972961,122.18,122.12,0.68]
[1766079176229,11.81972961,122.17,122.12,0.68]
[1766079177238,11.81972961,122.16,122.12,0.68]
[1766079177427,11.67447996,122.16,122.12,0.68]
[1766079177634,22.11215292,122.16,122.12,0.68]
[1766079177834,10.43767296,122.16,122.12,0.68]
[1766079178140,11.67447996,122.17,122.12,0.68]
[1766079178438,22.11215292,122.16,122.12,0.68]
[1766079178749,10.43767296,122.16,122.12,12.35447996]
[1766079179042,10.43767296,122.17,122.12,12.35447996]
[1766079179225,22.11215292,122.17,122.12,12.35447996]
[1766079179814,10.43767296,122.17,122.12,12.35447996]
[1766079180146,22.11215292,122.17,122.12,12.35447996]
[1766079180359,22.11215292,122.17,122.12,11.67447996]
[1766079180360,10.43767296,122.17,122.12,11.67447996]
[1766079180520,10.43767296,122.17,122.08,8.88]
[1766079180521,11.67447996,122.17,122.1,0.68]
[1766079180726,11.67447996,122.17,122.12,12.35447996]
[1766079181041,0.2,122.21,122.11,0.68]
[1766079181215,10.43767296,122.19,122.11,12.35447996]
[1766079181415,1.04999999,122.24,122.15,0.66]
[1766079181416,8.18129755,122.23,122.15,0.66]
[1766079181639,0.25,122.24,122.17,12.33447996]
[1766079181843,11.67447996,122.21,122.11,8.80994492]
[1766079182045,8.18065508,122.24,122.13,0.66]
[1766079182046,10.63767296,122.22,122.13,0.66]
[1766079182243,11.67447996,122.19,122.14,0.66]
[1766079182547,11.67447996,122.18,122.14,0.66]
[1766079182850,10.43767296,122.2,122.16,11.67447996]
[1766079183023,10.43767296,122.2,122.15,12.33447996]
[1766079183378,11.67447996,122.19,122.13,11.67447996]
[1766079183650,11.67447996,122.15,122.1,11.67447996]
[1766079183824,22.11215292,122.16,122.1,12.33447996]
[1766079184144,22.11215292,122.16,122.09,0.66]
[1766079184145,10.43767296,122.16,122.09,0.66]
[1766079184343,10.43767296,122.15,122.11,12.33447996]
[1766079184642,10.43767296,122.15,122.04,11.67447996]
[1766079184643,10.43767296,122.15,122.09,0.66]
[1766079184840,11.67447996,122.13,122.08,0.66]
[1766079185141,10.43767296,122.15,122.09,12.33447996]
[1766079185341,22.11215292,122.15,122.1,12.33447996]
[1766079185542,8.3829238,122.21,122.12,12.33447996]
[1766079185726,11.67447996,122.16,122.12,0.66]
[1766079185921,11.67447996,122.15,122.1,12.33447996]
[1766079186139,11.67447996,122.16,122.11,0.66]
[1766079186336,11.67447996,122.15,122.11,0.66]
[1766079186651,10.63767296,122.18,122.09,0.66]
[1766079186828,11.67447996,122.16,122.1,11.67447996]
[1766079187024,11.67447996,122.13,122.07,11.67447996]
[1766079187231,10.43767296,122.14,122.08,11.67447996]
[1766079187557,10.43767296,122.14,122.09,11.67447996]
[1766079187766,11.67447996,122.12,122.07,11.67447996]
[1766079187942,11.67447996,122.13,122.07,12.33447996]
[1766079188149,11.67447996,122.13,122.08,11.67447996]
[1766079188450,11.67447996,122.13,122.07,12.33447996]
[1766079188625,10.43767296,122.14,122.07,0.66]
[1766079188829,10.43767296,122.14,122.1,11.67447996]
[1766079189766,9.1,122.2,122.13,11.67447996]
[1766079190071,11.67447996,122.2,122.14,12.33447996]
[1766079190564,11.67447996,122.19,122.14,0.66]
[1766079190747,10.43767296,122.2,122.15,11.67447996]
[1766079191061,8.18134431,122.23,122.16,12.33447996]
[1766079191366,8.80994492,122.23,122.16,12.33447996]
[1766079191552,0.2,122.24,122.17,7.83829304]
[1766079191758,8.9,122.26,122.11,88.85681701]
[1766079191759,8.80994492,122.25,122.18,7.17829304]
[1766079192052,8.80994492,122.25,122.13,7.17829304]
[1766079192053,8.37620994,122.31,122.23,0.66]
[1766079192252,7.17829304,122.28,122.24,0.66]
[1766079192454,7.17829304,122.25,122.18,0.66]
[1766079192630,7.17829304,122.25,122.17,8.18523261]
[1766079192631,7.17829304,122.23,122.19,0.66]
[1766079192834,7.17829304,122.21,122.15,0.66]
[1766079193032,7.17829304,122.21,122.16,7.17829304]
[1766079193240,7.17829304,122.21,122.17,0.66]
[1766079193547,19.24761788,122.24,122.17,0.66]
[1766079193870,17.615966,122.22,122.17,0.66]
[1766079194046,10.43767296,122.22,122.18,0.66]
[1766079194666,0.2,122.28,122.21,0.66]
[1766079194849,8.22775073,122.29,122.2,7.17829304]
[1766079194850,7.17829304,122.27,122.2,0.66]
[1766079195170,7.17829304,122.26,122.21,0.66]
[1766079195466,8.80994492,122.29,122.22,7.17829304]
[1766079195669,7.17829304,122.27,122.23,0.66]
[1766079195859,7.17829304,122.26,122.21,0.66]
[1766079196180,8.80994492,122.3,122.23,0.66]
[1766079196466,7.17829304,122.3,122.22,0.66]
[1766079196770,7.17829304,122.28,122.2,8.18303154]
[1766079197069,7.17829304,122.28,122.19,20.45895347]
[1766079197070,0.2,122.31,122.28,0.66]
[1766079197245,0.2,122.31,122.28,0.57000705]
[1766079197448,0.2,122.31,122.29,7.17829304]
[1766079197655,7.37829304,122.31,122.23,0.81812975]
[1766079197840,7.37829304,122.31,122.25,7.17829304]
[1766079198045,7.37829304,122.31,122.22,8.88]
[1766079198046,7.17829304,122.3,122.24,7.17829304]
[1766079198240,7.17829304,122.3,122.21,20.45659111]
[1766079198241,7.17829304,122.28,122.21,8.88]
[1766079198451,17.615966,122.28,122.22,7.17829304]
[1766079199057,7.17829304,122.27,122.22,7.17829304]
[1766079199266,7.17829304,122.27,122.18,20.46082505]
[1766079199267,10.43767296,122.28,122.18,0.66]
[1766079199463,7.17829304,122.24,122.19,7.17829304]
[1766079199664,7.17829304,122.24,122.18,0.66]
[1766079199871,10.43767296,122.23,122.14,8.18688134]
[1766079200170,10.43767296,122.23,122.17,7.17829304]
[1766079200352,17.615966,122.21,122.13,17.1177464]
[1766079200558,10.43767296,122.21,122.14,7.83829304]
[1766079200759,10.43767296,122.21,122.17,0.66]
[1766079200952,10.43767296,122.21,122.17,7.83829304]
[1766079201163,10.43767296,122.21,122.17,0.66]
[1766079201772,17.615966,122.21,122.15,7.17829304]
[1766079201975,10.43767296,122.21,122.16,7.17829304]
[1766079202148,17.615966,122.23,122.18,0.66]
[1766079202348,7.17829304,122.22,122.17,7.17829304]
[1766079202543,10.43767296,122.23,122.17,7.83829304]
[1766079202847,7.17829304,122.22,122.18,0.66]
[1766079203355,10.43767296,122.23,122.18,7.83829304]
[1766079203558,20.44550887,122.28,122.2,0.66]
[1766079203559,7.17829304,122.25,122.2,0.66]
[1766079203878,7.17829304,122.25,122.15,16.99627538]
[1766079203879,0.05,122.28,122.22,7.17829304]
[1766079204079,0.05,122.28,122.24,7.17829304]
[1766079204262,0.2,122.31,122.29,7.83829304]
[1766079204461,0.31,122.33,122.31,0.66]
[1766079204664,0.89,122.39,122.34,7.17829304]
[1766079205278,0.89,122.39,122.34,0.63]
[1766079205279,0.2,122.39,122.34,0.63]
[1766079205457,7.17829304,122.37,122.31,0.63]
[1766079205782,0.89,122.39,122.29,7.17829304]
[1766079205783,7.17829304,122.35,122.29,7.17829304]
[1766079205966,10.43767296,122.34,122.26,8.88]
[1766079206152,10.43767296,122.34,122.25,9.43994492]
[1766079206153,8.37078973,122.39,122.29,8.80994492]
[1766079206356,0.69,122.38,122.28,0.63]
[1766079206570,7.17829304,122.34,122.28,7.80829304]
[1766079206767,0.69,122.36,122.26,8.17884551]
[1766079206768,10.43767296,122.32,122.26,8.17884551]
[1766079206961,10.43767296,122.32,122.27,7.17829304]
[1766079207374,0.69,122.33,122.24,16.05829304]
[1766079207580,0.69,122.33,122.26,7.80829304]
[1766079207751,10.43767296,122.31,122.28,7.80829304]
[1766079207956,7.17829304,122.34,122.28,7.80829304]
[1766079208389,8.80994492,122.37,122.25,10.43767296]
[1766079208390,7.17829304,122.32,122.25,10.43767296]
[1766079208581,0.69,122.33,122.25,16.98978866]
[1766079208760,7.86829304,122.33,122.27,7.17829304]
[1766079208959,7.17829304,122.31,122.25,15.35806869]
[1766079209278,9.1,122.39,122.24,7.17829304]
[1766079209279,0.69,122.3,122.24,7.17829304]
[1766079209450,7.17829304,122.3,122.24,8.18057385]
[1766079209653,7.17829304,122.28,122.23,7.17829304]
[1766079209851,7.86829304,122.28,122.22,7.17829304]
[1766079210158,7.86829304,122.28,122.15,0.99999999]
[1766079210159,0.69,122.23,122.13,8.88]
[1766079210353,17.615966,122.24,122.18,7.17829304]
[1766079210549,7.17829304,122.23,122.13,16.05829304]
[1766079210754,0.69,122.24,122.13,16.05829304]
[1766079210755,7.86829304,122.24,122.19,8.18386049]
[1766079210981,10.43767296,122.25,122.21,7.17829304]
[1766079211184,0.69,122.27,122.23,7.17829304]
[1766079211362,7.86829304,122.3,122.24,7.17829304]
[1766079211680,11.12767296,122.3,122.25,8.80994492]
[1766079211870,0.69,122.29,122.24,7.17829304]
[1766079212486,17.615966,122.3,122.25,7.17829304]
[1766079212487,10.43767296,122.3,122.25,7.17829304]
[1766079212678,7.86829304,122.29,122.23,7.17829304]
[1766079212885,0.69,122.29,122.24,7.17829304]
[1766079213065,17.615966,122.3,122.25,7.17829304]
[1766079213265,0.69,122.32,122.27,7.17829304]
[1766079213601,0.2,122.39,122.32,8.80994492]
[1766079213762,0.2,122.39,122.34,7.17829304]
[1766079213958,15.54896641,122.39,122.32,8.80994492]
[1766079214266,15.54896641,122.39,122.31,8.88]
[1766079214267,10.43767296,122.36,122.31,8.88]
[1766079214466,7.17829304,122.36,122.31,8.88]
[1766079214679,7.17829304,122.35,122.31,8.88]
[1766079215257,7.86829304,122.35,122.31,8.88]
[1766079215559,11.00126198,122.35,122.31,8.88]
[1766079215761,0.69,122.36,122.31,27.36699633]
[1766079215981,0.2,122.39,122.34,10.31126198]
[1766079216774,10.31126198,122.38,122.31,17.05573435]
[1766079216979,11.00126198,122.38,122.32,10.31126198]
[1766079217277,10.31126198,122.33,122.27,10.31126198]
[1766079217465,11.00126198,122.33,122.27,10.31126198]
[1766079217668,11.00126198,122.33,122.27,8.17835218]
[1766079217869,0.69,122.33,122.27,10.31126198]
[1766079218089,0.69,122.33,122.28,10.31126198]
[1766079218757,11.12767296,122.37,122.28,19.24761788]
[1766079218954,11.00126198,122.37,122.28,19.24761788]
[1766079219177,0.69,122.36,122.28,29.55887986]
[1766079219374,9.50126198,122.35,122.29,10.31126198]
[1766079219565,11.00126198,122.35,122.29,10.31126198]
[1766079219760,0.69,122.32,122.26,19.1212069]
[1766079219967,11.00126198,122.35,122.3,10.31126198]
[1766079220166,11.12767296,122.37,122.31,8.80994492]
[1766079220361,10.31126198,122.36,122.31,8.80994492]
[1766079220560,0.69,122.37,122.31,10.31126198]
[1766079220966,10.31126198,122.34,122.28,8.17773175]
[1766079221182,10.31126198,122.33,122.28,18.48899373]
[1766079221490,10.43767296,122.36,122.3,10.31126198]
[1766079221674,0.69,122.38,122.32,10.31126198]
[1766079221871,10.31126198,122.36,122.31,10.43767296]
[1766079222180,11.12767296,122.38,122.31,18.48658398]
[1766079222181,10.31126198,122.37,122.31,18.48658398]
[1766079222486,0.69,122.38,122.32,19.1212069]
[1766079222789,0.2,122.39,122.32,19.1212069]
[1766079222790,0.2,122.39,122.35,10.31126198]
[1766079222969,0.2,122.39,122.32,19.24761788]
[1766079223400,0.2,122.39,122.34,10.31126198]
[1766079223689,0.2,122.39,122.35,10.43767296]
[1766079223988,0.2,122.39,122.35,20.74893494]
[1766079224184,0.12,122.41,122.38,10.31126198]
[1766079224568,0.12,122.41,122.36,28.12761788]
[1766079224783,1e-08,122.45,122.43,8.80994492]
[1766079224971,0.1,122.51,122.45,8.80994492]
[1766079225182,0.1,122.51,122.47,8.80994492]
[1766079225512,0.2,122.54,122.51,8.80994492]
[1766079225670,10.31126198,122.53,122.44,0.99999999]
[1766079225868,10.31126198,122.53,122.47,8.80994492]
[1766079226190,0.2,122.54,122.49,8.80994492]
[1766079226559,0.2,122.54,122.47,28.57839255]
[1766079226863,0.2,122.54,122.5,8.80994492]
[1766079227393,10.31126198,122.53,122.46,10.31126198]
[1766079227685,0.69,122.52,122.46,8.16547267]
[1766079227890,10.63767296,122.54,122.46,10.31126198]
[1766079228091,0.2,122.54,122.47,8.80994492]
[1766079228476,10.51126198,122.54,122.47,10.31126198]
[1766079228662,0.69,122.59,122.5,19.1212069]
[1766079229171,0.69,122.59,122.46,8.16559991]
[1766079229172,0.69,122.55,122.46,8.16559991]
[1766079229361,10.31126198,122.49,122.44,8.80994492]
[1766079229565,10.31126198,122.51,122.44,10.31126198]
[1766079229793,8.88,122.57,122.46,18.47703384]
[1766079229967,0.69,122.59,122.51,19.1212069]
[1766079230167,0.69,122.59,122.51,8.80994492]
[1766079230370,10.31126198,122.56,122.5,18.47452728]
[1766079230567,10.31126198,122.54,122.49,10.43767296]
[1766079231089,0.69,122.55,122.48,8.16447635]
[1766079231394,10.31126198,122.54,122.49,8.16390778]
[1766079231583,10.31126198,122.54,122.48,8.16451079]
[1766079231788,0.69,122.57,122.5,10.43767296]
[1766079231968,0.69,122.57,122.5,18.60069034]
[1766079232170,10.31126198,122.56,122.5,18.60069034]
[1766079232373,0.69,122.57,122.5,10.43767296]
[1766079232681,10.43767296,122.57,122.5,8.16297036]
[1766079232884,10.31126198,122.57,122.51,8.80994492]
[1766079233078,10.31126198,122.56,122.5,8.16297036]
[1766079233274,10.27422174,122.56,122.51,8.80994492]
[1766079233479,10.27422174,122.55,122.48,10.27422174]
[1766079233677,10.43767296,122.58,122.47,20.7118947]
[1766079233678,10.96422174,122.54,122.47,20.7118947]
[1766079233875,0.69,122.54,122.48,8.80994492]
[1766079234075,0.69,122.54,122.47,8.80994492]
[1766079234076,0.69,122.53,122.47,8.80994492]
[1766079234379,11.12767296,122.54,122.48,8.16424239]
[1766079234575,10.96422174,122.54,122.48,19.08416666]
[1766079234780,10.96422174,122.54,122.48,16.97445608]
[1766079235202,10.27422174,122.53,122.47,18.60271878]
[1766079235393,10.96422174,122.51,122.46,8.80994492]
[1766079235594,10.27422174,122.5,122.45,8.80994492]
[1766079235772,0.69,122.51,122.45,8.80994492]
[1766079235970,10.27422174,122.49,122.43,8.16793269]
[1766079236194,0.69,122.5,122.43,28.87982739]
[1766079236398,10.27422174,122.49,122.44,8.80994492]
[1766079236901,10.96422174,122.5,122.44,8.80994492]
[1766079237103,10.27422174,122.49,122.44,8.80994492]
[1766079237296,10.96422174,122.5,122.44,8.80994492]
[1766079237481,0.69,122.53,122.45,7.14396618]
[1766079237801,8.88,122.59,122.48,15.9539111]
[1766079237802,11.12767296,122.56,122.48,15.9539111]
[1766079238112,7.14396618,122.52,122.47,8.16499235]
[1766079238277,7.83396618,122.51,122.46,8.80994492]
[1766079238477,0.69,122.51,122.46,8.80994492]
[1766079238696,0.69,122.51,122.47,16.97474655]
[1766079238891,7.83396618,122.51,122.47,16.97517267]
[1766079239203,7.14396618,122.53,122.48,8.16456407]
[1766079239408,0.69,122.54,122.49,8.80994492]
[1766079239580,0.69,122.55,122.49,8.80994492]
[1766079239786,7.14396618,122.51,122.47,8.1651064]
[1766079240092,7.83396618,122.49,122.4,40.84952607]
[1766079240412,18.27163914,122.52,122.46,28.58051708]
[1766079240725,18.27163914,122.52,122.37,1.19999999]
[1766079240726,0.72,122.51,122.37,1.19999999]
[1766079241008,7.14396618,122.47,122.41,10.43767296]
[1766079241208,8.80994492,122.53,122.43,8.80994492]
[1766079241209,17.66994492,122.53,122.43,8.80994492]
[1766079241389,8.15993472,122.55,122.43,8.80994492]
[1766079241390,0.72,122.51,122.43,26.39158406]
[1766079241591,7.14396618,122.48,122.43,19.24761788]
[1766079241783,7.14396618,122.46,122.4,8.86]
[1766079241987,0.72,122.47,122.41,10.43767296]
[1766079242188,7.14396618,122.46,122.42,8.1685999]
[1766079242409,7.86396618,122.47,122.42,8.1685999]
[1766079242602,0.72,122.47,122.42,8.1685999]
[1766079242812,7.86396618,122.47,122.42,8.1685999]
[1766079242999,0.72,122.47,122.42,8.1685999]
[1766079243202,7.14396618,122.47,122.42,8.1685999]
[1766079243607,7.14396618,122.46,122.42,8.80994492]
[1766079243910,7.86396618,122.46,122.41,8.16898035]
[1766079244230,7.86396618,122.46,122.37,20.62918818]
[1766079244231,7.14396618,122.44,122.37,20.62918818]
[1766079244393,7.14396618,122.44,122.4,8.16990109]
[1766079245012,7.86396618,122.45,122.4,8.16990109]
[1766079245208,0.72,122.45,122.4,8.16990109]
[1766079245613,17.58163914,122.46,122.4,35.73870387]
[1766079246113,11.15767296,122.46,122.4,35.73870387]
[1766079246310,0.72,122.46,122.41,15.9539111]
[1766079246483,7.86396618,122.49,122.41,19.24761788]
[1766079246683,0.72,122.49,122.43,15.9539111]
[1766079246900,7.86396618,122.49,122.43,15.9539111]
[1766079247515,0.72,122.52,122.45,7.14396618]
[1766079247690,7.86396618,122.51,122.45,7.14396618]
[1766079247885,7.14396618,122.5,122.42,8.80994492]